fUSD/lending_fUSD_20241104
["ID","MTS","AMOUNT","RATE_DAILY","PERIOD"]
[341265497,1730735475876,-1687.58,0.00036712,2]
[341265498,1730735475885,-500.0,0.00036712,2]
[341265499,1730735475894,-500.0,0.00036712,2]
[341265500,1730735475904,-911.86,0.00036712,2]
[341265501,1730735475913,-500.0,0.00036712,2]
[341265502,1730735475922,-835.19,0.00036712,2]
[341265503,1730735475931,-500.0,0.00036712,2]
[341265504,1730735475940,-878.68,0.00036712,2]
[341265505,1730735475950,-1098.84,0.00036712,2]
[341265506,1730735475960,-500.0,0.00036712,2]
[341265507,1730735475971,-1310.74,0.00036712,2]
[341265508,1730735475982,-500.0,0.00036712,2]
[341265509,1730735475991,-2183.79,0.00036712,2]
[341265510,1730735476001,-500.0,0.00036712,2]
[341265511,1730735476010,-820.36,0.00036712,2]
[341265512,1730735476019,-515.02,0.00036712,2]
[341265513,1730735476029,-500.0,0.00036712,2]
[341265514,1730735476038,-500.0,0.00036712,2]
[341265515,1730735476048,-500.0,0.00036712,2]
[341265516,1730735476057,-500.0,0.00036712,2]
[341265517,1730735476067,-500.0,0.00036712,2]
[341265518,1730735476076,-500.0,0.00036712,2]
[341265519,1730735476086,-500.0,0.00036712,2]
[341265520,1730735476096,-500.0,0.00036712,2]
[341265521,1730735476105,-500.0,0.00036712,2]
[341265522,1730735476115,-500.0,0.00036712,2]
[341265523,1730735476124,-500.0,0.00036712,2]
[341265524,1730735476134,-1708.91,0.00036712,2]
[341265525,1730735476143,-544.98,0.00036712,2]
[341265526,1730735476153,-500.0,0.00036712,2]
[341265527,1730735476163,-500.0,0.00036712,2]
[341265528,1730735476172,-660.53,0.00036712,2]
[341265529,1730735476182,-500.0,0.00036712,2]
[341265530,1730735476191,-850.52,0.00036712,2]
[341265531,1730735476201,-564.44,0.00036712,2]
[341265532,1730735476210,-752.59,0.00036712,2]
[341265533,1730735476221,-500.0,0.00036712,2]
[341265534,1730735476230,-500.0,0.00036712,2]
[341265535,1730735476240,-500.0,0.00036712,2]
[341265536,1730735476249,-500.0,0.00036712,2]
[341265537,1730735476259,-500.0,0.00036712,2]
[341265538,1730735476270,-1296.67,0.00036712,2]
[341265539,1730735476280,-1584.46,0.00036712,2]
[341265540,1730735476289,-500.0,0.00036712,2]
[341265541,1730735476299,-1066.3,0.00036712,2]
[341265542,1730735476309,-500.0,0.00036712,2]
[341265543,1730735476319,-1582.17,0.00036712,2]
[341265544,1730735476329,-500.0,0.00036712,2]
[341265545,1730735476339,-500.0,0.00036712,2]
[341265546,1730735476350,-500.0,0.00036712,2]
[341265547,1730735476360,-500.0,0.00036712,2]
[341265548,1730735476371,-500.0,0.00036712,2]
[341265549,1730735476380,-500.0,0.00036712,2]
[341265550,1730735476395,-500.0,0.00036712,2]
[341265551,1730735476406,-500.0,0.00036712,2]
[341265552,1730735476415,-500.0,0.00036712,2]
[341265553,1730735476425,-1042.76,0.00036712,2]
[341265554,1730735476435,-151.0,0.00036712,7]
[341265555,1730735476445,-500.0,0.00036712,2]
[341265556,1730735476455,-1058.38,0.00036712,2]
[341265557,1730735476464,-500.0,0.00036712,2]
[341265558,1730735476476,-505.09,0.00036712,2]
[341265559,1730735476486,-200.0,0.00036712,2]
[341265560,1730735476496,-913.46,0.00036712,2]
[341265561,1730735476506,-2146.82,0.00036712,2]
[341265562,1730735476515,-766.26,0.00036712,2]
[341265563,1730735476525,-500.0,0.00036712,2]
[341265564,1730735476535,-1191.45,0.00036712,2]
[341265565,1730735476676,-500.0,0.00036712,2]
[341265566,1730735476686,-500.0,0.00036712,2]
[341265567,1730735476696,-500.0,0.00036712,2]
[341265568,1730735476705,-609.71,0.00036712,2]
[341265569,1730735476716,-938.94,0.00036712,2]
[341265570,1730735476726,-734.64,0.00036712,2]
[341265571,1730735476736,-500.0,0.00036712,2]
[341265572,1730735476746,-300.0,0.00036712,2]
[341265573,1730735476756,-500.0,0.00036712,2]
[341265574,1730735476765,-530.41,0.00036712,2]
[341265575,1730735476775,-500.0,0.00036712,2]
[341265576,1730735476785,-1127.04,0.00036712,2]
[341265577,1730735476795,-654.01,0.00036712,2]
[341265578,1730735476805,-3340.62,0.00036712,2]
[341265579,1730735476815,-500.0,0.00036712,2]
[341265580,1730735476825,-500.0,0.00036712,2]
[341265581,1730735476836,-10593.24,0.00036712,2]
[341265582,1730735476846,-500.0,0.00036712,2]
[341265583,1730735476856,-500.0,0.00036712,2]
[341265584,1730735476865,-735.14,0.00036712,2]
[341265585,1730735476875,-528.03,0.00036712,2]
[341265586,1730735476885,-3005.2,0.00036712,2]
[341265587,1730735476895,-1246.62,0.00036712,2]
[341265588,1730735476904,-230.94219999,0.00036712,2]
[341265589,1730735476914,-500.0,0.00036712,2]
[341265590,1730735476924,-500.0,0.00036712,2]
[341265591,1730735476934,-558.26,0.00036712,2]
[341265592,1730735476944,-500.0,0.00036712,2]
[341265593,1730735476954,-656.86,0.00036712,2]
[341265594,1730735476964,-625.73,0.00036712,2]
[341265595,1730735476975,-1000.0,0.00036712,2]
[341265596,1730735476986,-500.0,0.00036712,2]
[341265597,1730735476995,-2616.04,0.00036712,2]
[341265598,1730735477006,-500.0,0.00036712,2]
[341265599,1730735477016,-3461.86,0.00036712,2]
[341265600,1730735477027,-500.0,0.00036712,2]
[341265601,1730735477037,-500.0,0.00036712,2]
[341265602,1730735477052,-500.0,0.00036712,2]
[341265603,1730735477062,-1222.7,0.00036712,2]
[341265604,1730735477072,-514.78,0.00036712,2]
[341265605,1730735477081,-516.75000103,0.00036712,2]
[341265606,1730735477092,-500.0,0.00036712,2]
[341265607,1730735477101,-500.0,0.00036712,2]
[341265608,1730735477112,-500.0,0.00036712,2]
[341265609,1730735477122,-500.0,0.00036712,2]
[341265610,1730735477132,-954.74,0.00036712,2]
[341265611,1730735477142,-692.32,0.00036712,2]
[341265612,1730735477152,-596.33,0.00036712,2]
[341265613,1730735477161,-284.18,0.00036712,2]
[341265614,1730735477174,-500.0,0.00036712,2]
[341265615,1730735477184,-255.746573,0.00036712,7]
[341265616,1730735477193,-1916.99,0.00036712,2]
[341265617,1730735477203,-10000.0,0.00036712,30]
[341265618,1730735477212,-483.49304379,0.00036735,2]
[341265619,1730735477223,-152.0,0.00036805,3]
[341265620,1730735477232,-500.0,0.00036985,2]
[341265621,1730735477242,-500.0,0.00036985,2]
[341265622,1730735477251,-519.87,0.00036985,2]
[341265623,1730735477261,-500.0,0.00036985,2]
[341265624,1730735477270,-500.0,0.00036985,2]
[341265625,1730735477281,-625.08053425,0.00036985,2]
[341265626,1730735477290,-500.0,0.00036985,2]
[341265627,1730735477301,-544.24566768,0.00036985,2]
[341265628,1730735477311,-500.0,0.00036985,2]
[341265629,1730735477321,-500.0,0.00036985,2]
[341265630,1730735477331,-500.0,0.00036985,2]
[341265631,1730735477341,-500.0,0.00036985,2]
[341265632,1730735477351,-500.0,0.00036985,2]
[341265633,1730735477360,-206.3052521,0.00036985,2]
[341265634,1730735477370,-500.0,0.00036985,2]
[341265635,1730735477379,-500.0,0.00036985,2]
[341265636,1730735477391,-500.0,0.00036985,2]
[341265637,1730735477401,-500.0,0.00036985,2]
[341265638,1730735477410,-578.85869481,0.00036985,2]
[341265639,1730735477420,-562.6124014,0.00036985,2]
[341265640,1730735477430,-500.0,0.00036985,2]
[341265641,1730735477442,-324.75661843,0.00036985,2]
[341265642,1730735477452,-556.96474437,0.00036985,2]
[341265643,1730735477462,-500.0,0.00036985,2]
[341265644,1730735477473,-607.96051031,0.00036985,2]
[341265645,1730735477482,-320.41716944,0.00036985,2]
[341265646,1730735477491,-500.0,0.00036985,2]
[341265647,1730735477501,-500.0,0.00036985,2]
[341265648,1730735477511,-500.0,0.00036985,2]
[341265649,1730735477520,-520.94,0.00036985,2]
[341265650,1730735477530,-500.0,0.00036985,2]
[341265651,1730735477540,-500.0,0.00036985,2]
[341265652,1730735477550,-575.99,0.00036985,2]
[341265653,1730735477559,-500.0,0.00036985,2]
[341265654,1730735477570,-500.0,0.00036985,2]
[341265655,1730735477580,-500.0,0.00036985,2]
[341265656,1730735477589,-500.0,0.00036985,2]
[341265657,1730735477599,-500.0,0.00036985,2]
[341265658,1730735477609,-532.56357044,0.00036985,2]
[341265659,1730735477619,-549.42,0.00036985,2]
[341265660,1730735477628,-500.0,0.00036986,2]
[341265661,1730735477639,-500.0,0.00036986,2]
[341265662,1730735477649,-607.69240546,0.00036986,2]
[341265663,1730735477659,-500.0,0.00036986,2]
[341265664,1730735477670,-500.0,0.00036986,2]
[341265665,1730735477680,-500.0,0.00036986,2]
[341265666,1730735477691,-500.0,0.00036986,2]
[341265667,1730735477702,-678.77,0.00036986,2]
[341265668,1730735477713,-500.0,0.00036986,2]
[341265669,1730735477722,-500.0,0.00036986,2]
[341265670,1730735477733,-500.0,0.00036986,2]
[341265671,1730735477743,-500.0,0.00036986,2]
[341265672,1730735477752,-500.0,0.00036986,2]
[341265673,1730735477762,-500.0,0.00036986,2]
[341265674,1730735477772,-500.0,0.00036986,2]
[341265675,1730735477781,-595.97,0.00036986,2]
[341265676,1730735477790,-500.0,0.00036986,2]
[341265677,1730735477800,-500.0,0.00036986,2]
[341265678,1730735477809,-562.46,0.00036986,2]
[341265679,1730735477818,-500.0,0.00036986,2]
[341265680,1730735477828,-500.0,0.00036986,2]
[341265681,1730735477837,-500.0,0.00036986,2]
[341265682,1730735477846,-845.59,0.00036986,2]
[341265683,1730735477856,-500.0,0.00036986,2]
[341265684,1730735477865,-500.0,0.00036986,2]
[341265685,1730735477875,-500.0,0.00036986,2]
[341265686,1730735477884,-500.0,0.00036986,2]
[341265687,1730735477894,-600.60900397,0.00036986,2]
[341265688,1730735477903,-500.0,0.00036986,2]
[341265689,1730735477912,-750.1,0.00036986,2]
[341265690,1730735477922,-500.0,0.00036986,2]
[341265691,1730735477931,-500.0,0.00036986,2]
[341265692,1730735477941,-500.0,0.00036986,2]
[341265693,1730735477950,-485.60894133,0.00036986,2]
[341265694,1730735477960,-500.0,0.00036986,2]
[341265695,1730735477969,-208.16031617,0.00036986,2]
[341265696,1730735477979,-500.0,0.00036986,2]
[341265697,1730735477988,-500.0,0.00036986,2]
[341265698,1730735477997,-335.16600266,0.00036986,2]
[341265699,1730735478007,-567.62,0.00036986,2]
[341265700,1730735478016,-500.0,0.00036986,2]
[341265701,1730735478026,-500.0,0.00036986,2]
[341265702,1730735478035,-1971.19,0.00036986,2]
[341265703,1730735478044,-1610.78,0.00036986,2]
[341265704,1730735478054,-500.0,0.00036986,2]
[341265705,1730735478064,-1096.83,0.00036986,2]
[341265706,1730735478073,-500.0,0.00036986,2]
[341265707,1730735478082,-500.0,0.00036986,2]
[341265708,1730735478091,-500.0,0.00036986,2]
[341265709,1730735478101,-516.0,0.00036986,2]
[341265710,1730735478110,-500.0,0.00036986,2]
[341265711,1730735478119,-527.03,0.00036986,2]
[341265712,1730735478129,-500.0,0.00036986,2]
[341265713,1730735478138,-500.0,0.00036986,2]
[341265714,1730735478147,-680.27,0.00036986,2]
[341265715,1730735478156,-511.55,0.00036986,2]
[341265716,1730735478168,-500.0,0.00036986,2]
[341265717,1730735478177,-568.1,0.00036986,2]
[341265718,1730735478187,-630.31,0.00036986,2]
[341265719,1730735478196,-879.99,0.00036986,2]
[341265720,1730735478205,-500.0,0.00036986,2]
[341265721,1730735478215,-1000.0,0.00036986,30]
[341265722,1730735478226,-860.12,0.00036986,2]
[341265723,1730735478235,-543.51216658,0.00036986,2]
[341265724,1730735478244,-500.0,0.00036986,2]
[341265725,1730735478254,-500.0,0.00036986,2]
[341265726,1730735478264,-678.21,0.00036986,2]
[341265727,1730735478274,-777.65,0.00036986,2]
[341265728,1730735478283,-500.0,0.00036986,2]
[341265729,1730735478293,-500.0,0.00036986,2]
[341265730,1730735478303,-512.81,0.00036986,2]
[341265731,1730735478313,-1976.03,0.00036986,2]
[341265732,1730735478323,-977.14,0.00036986,2]
[341265733,1730735478332,-500.0,0.00036986,2]
[341265734,1730735478342,-500.0,0.00036986,2]
[341265735,1730735478352,-500.0,0.00036986,2]
[341265736,1730735478361,-622.99,0.00036986,2]
[341265737,1730735478371,-500.0,0.00036986,2]
[341265738,1730735478380,-712.32,0.00036986,2]
[341265739,1730735478393,-516.9962714,0.00036986,2]
[341265740,1730735478402,-283.09986791,0.00036986,2]
[341265741,1730735478412,-1115.68,0.00036986,2]
[341265742,1730735478422,-500.0,0.00036986,2]
[341265743,1730735478431,-500.0,0.00036986,2]
[341265744,1730735478441,-500.0,0.00036986,2]
[341265745,1730735478451,-500.0,0.00036986,2]
[341265746,1730735478460,-500.0,0.00036986,2]
[341265747,1730735478470,-500.0,0.00036986,2]
[341265748,1730735478481,-808.98,0.00036986,2]
[341265749,1730735478490,-500.0,0.00036986,2]
[341265750,1730735478500,-1323.81,0.00036986,2]
[341265751,1730735478509,-1426.9,0.00036986,2]
[341265752,1730735478519,-500.0,0.00036986,2]
[341265753,1730735478529,-261.21133664,0.00036986,2]
[341265754,1730735478539,-500.0,0.00036986,2]
[341265755,1730735478548,-500.0,0.00036986,2]
[341265756,1730735478558,-666.03,0.00036986,2]
[341265757,1730735478568,-839.44,0.00036986,2]
[341265758,1730735478577,-500.0,0.00036986,2]
[341265759,1730735478587,-500.0,0.00036986,2]
[341265760,1730735478596,-500.0,0.00036986,2]
[341265761,1730735478605,-212.98054997,0.00036986,2]
[341265762,1730735478614,-500.0,0.00036986,2]
[341265763,1730735478624,-500.0,0.00036986,2]
[341265764,1730735478633,-737.61,0.00036986,2]
[341265765,1730735478643,-500.0,0.00036986,2]
[341265766,1730735478652,-500.0,0.00036986,2]
[341265767,1730735478663,-500.0,0.00036986,2]
[341265768,1730735478672,-500.0,0.00036986,2]
[341265769,1730735478682,-628.78,0.00036986,2]
[341265770,1730735478692,-753.23,0.00036986,2]
[341265771,1730735478701,-500.0,0.00036986,2]
[341265772,1730735478710,-500.0,0.00036986,2]
[341265773,1730735478720,-329.78821624,0.00036986,2]
[341265774,1730735478731,-512.34,0.00036986,2]
[341265775,1730735478740,-339.80840711,0.00036986,2]
[341265776,1730735478750,-690.94,0.00036986,2]
[341265777,1730735478760,-1122.64,0.00036986,2]
[341265778,1730735478770,-956.46,0.00036986,2]
[341265779,1730735478779,-500.0,0.00036986,2]
[341265780,1730735478789,-500.0,0.00036986,2]
[341265781,1730735478798,-500.0,0.00036986,2]
[341265782,1730735478807,-231.86180536,0.00036986,2]
[341265783,1730735478817,-500.0,0.00036986,2]
[341265784,1730735478826,-500.0,0.00036986,2]
[341265785,1730735478835,-1420.89,0.00036986,2]
[341265786,1730735478845,-705.19,0.00036986,2]
[341265787,1730735478855,-500.0,0.00036986,2]
[341265788,1730735478864,-767.22,0.00036986,2]
[341265789,1730735478875,-500.0,0.00036986,2]
[341265790,1730735478884,-712.63,0.00036986,2]
[341265791,1730735478894,-500.0,0.00036986,2]
[341265792,1730735478903,-869.5,0.00036986,2]
[341265793,1730735478913,-500.0,0.00036986,2]
[341265794,1730735478923,-937.08,0.00036986,2]
[341265795,1730735478932,-764.15,0.00036986,2]
[341265796,1730735478942,-500.0,0.00036986,2]
[341265797,1730735478952,-1294.05,0.00036986,2]
[341265798,1730735478962,-500.0,0.00036986,2]
[341265799,1730735478971,-151.43098195,0.00036986,2]
[341265800,1730735478981,-510.62,0.00036986,2]
[341265801,1730735478991,-524.31,0.00036986,2]
[341265802,1730735479001,-500.0,0.00036986,2]
[341265803,1730735479010,-1118.2,0.00036986,2]
[341265804,1730735479020,-500.0,0.00036986,2]
[341265805,1730735479030,-500.0,0.00036986,2]
[341265806,1730735479039,-500.0,0.00036986,2]
[341265807,1730735479049,-711.3,0.00036986,2]
[341265808,1730735479058,-500.0,0.00036986,2]
[341265809,1730735479068,-500.0,0.00036986,2]
[341265810,1730735479078,-1519.0,0.00036986,2]
[341265811,1730735479087,-500.0,0.00036986,2]
[341265812,1730735479225,-500.0,0.00036986,2]
[341265813,1730735479235,-500.0,0.00036986,2]
[341265814,1730735479245,-1126.44,0.00036986,2]
[341265815,1730735479254,-544.05,0.00036986,2]
[341265816,1730735479263,-500.0,0.00036986,2]
[341265817,1730735479273,-500.0,0.00036986,2]
[341265818,1730735479282,-500.0,0.00036986,2]
[341265819,1730735479291,-500.0,0.00036986,2]
[341265820,1730735479301,-1288.14,0.00036986,2]
[341265821,1730735479310,-543.83,0.00036986,2]
[341265822,1730735479320,-219.85169302,0.00036986,2]
[341265823,1730735479330,-636.36,0.00036986,2]
[341265824,1730735479339,-1218.15,0.00036986,2]
[341265825,1730735479348,-500.0,0.00036986,2]
[341265826,1730735479357,-1259.81,0.00036986,2]
[341265827,1730735479367,-1651.88,0.00036986,2]
[341265828,1730735479376,-319.99,0.00036986,2]
[341265829,1730735479388,-500.0,0.00036986,2]
[341265830,1730735479399,-500.0,0.00036986,2]
[341265831,1730735479408,-500.0,0.00036986,2]
[341265832,1730735479418,-1360.92,0.00036986,2]
[341265833,1730735479428,-500.0,0.00036986,2]
[341265834,1730735479438,-912.89,0.00036986,2]
[341265835,1730735479447,-500.0,0.00036986,2]
[341265836,1730735479456,-500.0,0.00036986,2]
[341265837,1730735479466,-500.0,0.00036986,2]
[341265838,1730735479476,-500.0,0.00036986,2]
[341265839,1730735479485,-500.0,0.00036986,2]
[341265840,1730735479494,-719.39,0.00036986,2]
[341265841,1730735479504,-500.0,0.00036986,2]
[341265842,1730735479513,-704.43,0.00036986,2]
[341265843,1730735479522,-669.63,0.00036986,2]
[341265844,1730735479531,-500.0,0.00036986,2]
[341265845,1730735479542,-500.0,0.00036986,2]
[341265846,1730735479552,-529.69,0.00036986,2]
[341265847,1730735479562,-500.0,0.00036986,2]
[341265848,1730735479571,-500.0,0.00036986,2]
[341265849,1730735479581,-500.0,0.00036986,2]
[341265850,1730735479590,-500.0,0.00036986,2]
[341265851,1730735479600,-500.0,0.00036986,2]
[341265852,1730735479609,-500.0,0.00036986,2]
[341265853,1730735479619,-1802.68,0.00036986,2]
[341265854,1730735479628,-500.0,0.00036986,2]
[341265855,1730735479637,-393.52864995,0.00036986,2]
[341265856,1730735479646,-500.0,0.00036986,2]
[341265857,1730735479655,-500.0,0.00036986,2]
[341265858,1730735479664,-500.0,0.00036986,2]
[341265859,1730735479674,-500.0,0.00036986,2]
[341265860,1730735479684,-687.5,0.00036986,2]
[341265861,1730735479693,-1321.04,0.00036986,2]
[341265862,1730735479702,-909.72,0.00036986,2]
[341265863,1730735479712,-500.0,0.00036986,2]
[341265864,1730735479720,-500.0,0.00036986,2]
[341265865,1730735479730,-500.0,0.00036986,2]
[341265866,1730735479739,-879.57,0.00036986,2]
[341265867,1730735479750,-500.0,0.00036986,2]
[341265868,1730735479759,-571.76,0.00036986,2]
[341265869,1730735479769,-500.0,0.00036986,2]
[341265870,1730735479778,-500.0,0.00036986,2]
[341265871,1730735479788,-534.69,0.00036986,2]
[341265872,1730735479797,-500.0,0.00036986,2]
[341265873,1730735479807,-500.0,0.00036986,2]
[341265874,1730735479817,-939.96,0.00036986,2]
[341265875,1730735479827,-500.0,0.00036986,2]
[341265876,1730735479836,-980.66,0.00036986,2]
[341265877,1730735479847,-500.0,0.00036986,2]
[341265878,1730735479858,-500.0,0.00036986,2]
[341265879,1730735479868,-546.11,0.00036986,2]
[341265880,1730735479877,-500.0,0.00036986,2]
[341265881,1730735479887,-511.22,0.00036986,2]
[341265882,1730735479898,-500.0,0.00036986,2]
[341265883,1730735479907,-500.0,0.00036986,2]
[341265884,1730735479917,-505.5,0.00036986,2]
[341265885,1730735479927,-500.0,0.00036986,2]
[341265886,1730735479937,-500.0,0.00036986,2]
[341265887,1730735479946,-984.46,0.00036986,2]
[341265888,1730735479956,-614.73,0.00036986,2]
[341265889,1730735479965,-500.0,0.00036986,2]
[341265890,1730735479975,-500.0,0.00036986,2]
[341265891,1730735479985,-602.48,0.00036986,2]
[341265892,1730735479994,-988.32,0.00036986,2]
[341265893,1730735480003,-500.0,0.00036986,2]
[341265894,1730735480014,-500.0,0.00036986,2]
[341265895,1730735480023,-500.0,0.00036986,2]
[341265896,1730735480032,-631.52,0.00036986,2]
[341265897,1730735480041,-553.74,0.00036986,2]
[341265898,1730735480051,-988.27,0.00036986,2]
[341265899,1730735480060,-769.98,0.00036986,2]
[341265900,1730735480070,-500.0,0.00036986,2]
[341265901,1730735480080,-500.0,0.00036986,2]
[341265902,1730735480089,-500.0,0.00036986,2]
[341265903,1730735480099,-500.0,0.00036986,2]
[341265904,1730735480109,-1956.97,0.00036986,2]
[341265905,1730735480119,-500.0,0.00036986,2]
[341265906,1730735480130,-500.0,0.00036986,2]
[341265907,1730735480140,-500.0,0.00036986,2]
[341265908,1730735480151,-250.0,0.00036986,2]
[341265909,1730735480161,-500.0,0.00036986,2]
[341265910,1730735480172,-500.0,0.00036986,2]
[341265911,1730735480182,-566.39,0.00036986,2]
[341265912,1730735480192,-1694.4,0.00036986,2]
[341265913,1730735480202,-500.0,0.00036986,2]
[341265914,1730735480211,-177.6811893,0.00036986,2]
[341265915,1730735480221,-500.0,0.00036986,2]
[341265916,1730735480232,-500.0,0.00036986,2]
[341265917,1730735480242,-500.0,0.00036986,2]
[341265918,1730735480252,-500.0,0.00036986,2]
[341265919,1730735480261,-515.3,0.00036986,2]
[341265920,1730735480271,-500.0,0.00036986,2]
[341265921,1730735480283,-879.85,0.00036986,2]
[341265922,1730735480292,-315.06566943,0.00036986,2]
[341265923,1730735480302,-652.97,0.00036986,2]
[341265924,1730735480311,-689.03,0.00036986,2]
[341265925,1730735480322,-500.0,0.00036986,2]
[341265926,1730735480333,-500.0,0.00036986,2]
[341265927,1730735480343,-500.0,0.00036986,2]
[341265928,1730735480352,-777.65,0.00036986,2]
[341265929,1730735480362,-500.0,0.00036986,2]
[341265930,1730735480371,-152.47369526,0.00036986,2]
[341265931,1730735480380,-500.0,0.00036986,2]
[341265932,1730735480392,-500.0,0.00036986,2]
[341265933,1730735480402,-500.0,0.00036986,2]
[341265934,1730735480411,-609.2,0.00036986,2]
[341265935,1730735480421,-1141.77,0.00036986,2]
[341265936,1730735480431,-815.25,0.00036986,2]
[341265937,1730735480441,-611.47,0.00036986,2]
[341265938,1730735480450,-500.0,0.00036986,2]
[341265939,1730735480460,-1247.49,0.00036986,2]
[341265940,1730735480470,-500.0,0.00036986,2]
[341265941,1730735480481,-760.38065762,0.00036986,2]
[341265942,1730735480490,-500.0,0.00036986,2]
[341265943,1730735480500,-877.23,0.00036986,2]
[341265944,1730735480510,-1538.63,0.00036986,2]
[341265945,1730735480519,-1051.45,0.00036986,2]
[341265946,1730735480529,-500.0,0.00036986,2]
[341265947,1730735480538,-500.0,0.00036986,2]
[341265948,1730735480548,-4150.77,0.00036986,2]
[341265949,1730735480558,-500.0,0.00036986,2]
[341265950,1730735480568,-745.46,0.00036986,2]
[341265951,1730735480578,-1876.8,0.00036986,2]
[341265952,1730735480588,-1151.0,0.00036986,2]
[341265953,1730735480597,-1770.42,0.00036986,2]
[341265954,1730735480607,-151.0,0.00036986,7]
[341265955,1730735480617,-510.09,0.00036986,2]
[341265956,1730735480627,-500.0,0.00036986,2]
[341265957,1730735480637,-522.29,0.00036986,2]
[341265958,1730735480648,-958.22,0.00036986,2]
[341265959,1730735480659,-1255.75,0.00036986,120]
[341265960,1730735480669,-1127.16,0.00036986,2]
[341265961,1730735480680,-500.0,0.00036986,2]
[341265962,1730735480689,-865.69,0.00036986,2]
[341265963,1730735480699,-500.0,0.00036986,2]
[341265964,1730735480709,-500.0,0.00036986,2]
[341265965,1730735480720,-1128.13,0.00036986,2]
[341265966,1730735480731,-500.0,0.00036986,2]
[341265967,1730735480740,-500.0,0.00036986,2]
[341265968,1730735480749,-1045.13,0.00036986,2]
[341265969,1730735480760,-531.53,0.00036986,2]
[341265970,1730735480770,-500.0,0.00036986,2]
[341265971,1730735480781,-2026.72,0.00036986,2]
[341265972,1730735480791,-1098.81,0.00036986,2]
[341265973,1730735480800,-250.0,0.00036986,2]
[341265974,1730735480809,-520.4,0.00036986,2]
[341265975,1730735480819,-500.0,0.00036986,2]
[341265976,1730735480829,-500.0,0.00036986,2]
[341265977,1730735480839,-519.04,0.00036986,2]
[341265978,1730735480848,-500.0,0.00036986,2]
[341265979,1730735480859,-500.0,0.00036986,2]
[341265980,1730735480869,-500.0,0.00036986,2]
[341265981,1730735480879,-510.67329317,0.00036986,2]
[341265982,1730735480890,-500.0,0.00036986,2]
[341265983,1730735480900,-627.52,0.00036986,2]
[341265984,1730735480910,-500.0,0.00036986,2]
[341265985,1730735480920,-587.36,0.00036986,2]
[341265986,1730735480930,-500.0,0.00036986,2]
[341265987,1730735480940,-500.0,0.00036986,2]
[341265988,1730735480949,-500.0,0.00036986,2]
[341265989,1730735480959,-2121.93,0.00036986,2]
[341265990,1730735480968,-500.0,0.00036986,2]
[341265991,1730735480978,-567.76012549,0.00036986,2]
[341265992,1730735480988,-582.71,0.00036986,2]
[341265993,1730735480998,-500.0,0.00036986,2]
[341265994,1730735481007,-1427.63,0.00036986,2]
[341265995,1730735481016,-791.14,0.00036986,2]
[341265996,1730735481026,-1116.56,0.00036986,2]